fUSD/lending_fUSD_20251215
["ID","MTS","AMOUNT","RATE_DAILY","PERIOD"]
[398548670,1765823492714,-2015.478988,0.00017,2]
[398548671,1765823492724,-2015.478988,0.00017,2]
[398548672,1765823492734,-2015.478988,0.00017,2]
[398548673,1765823492744,-2015.478988,0.00017,2]
[398548674,1765823492753,-2015.478988,0.00017,2]
[398548675,1765823492762,-154.0,0.00017,2]
[398548676,1765823492772,-2015.478988,0.00017,2]
[398548677,1765823492782,-154.0,0.00017,2]
[398548678,1765823492793,-154.0,0.00017,2]
[398548679,1765823492802,-2015.478988,0.00017,2]
[398548680,1765823492812,-2015.478988,0.00017,2]
[398548681,1765823492822,-154.0,0.00017,2]
[398548682,1765823492832,-2015.478988,0.00017,2]
[398548683,1765823492841,-154.0,0.00017,2]
[398548684,1765823492851,-154.0,0.00017,2]
[398548685,1765823492862,-154.0,0.00017,2]
[398548686,1765823492872,-154.0,0.00017,2]
[398548687,1765823492882,-164.22646165,0.00017,2]
[398548688,1765823492893,-154.0,0.00017,2]
[398548689,1765823492904,-839.569379,0.00017,2]
[398548690,1765823492914,-839.569379,0.00017,2]
[398548691,1765823492923,-839.569379,0.00017,2]
[398548692,1765823492933,-598.033127,0.00017,2]
[398548693,1765823492944,-598.033127,0.00017,2]
[398548694,1765823492954,-839.569379,0.00017,2]
[398548695,1765823492963,-598.033127,0.00017,2]
[398548696,1765823492973,-839.569379,0.00017,2]
[398548697,1765823492982,-839.569379,0.00017,2]
[398548698,1765823492992,-151.0,0.00017,2]
[398548699,1765823493001,-151.0,0.00017,2]
[398548700,1765823493011,-598.033127,0.00017,2]
[398548701,1765823493021,-151.0,0.00017,2]
[398548702,1765823493031,-598.033127,0.00017,2]
[398548703,1765823493202,-839.569379,0.00017,2]
[398548704,1765823493213,-598.033127,0.00017,2]
[398548705,1765823493223,-839.569379,0.00017,2]
[398548706,1765823493233,-839.569379,0.00017,2]
[398548707,1765823493243,-598.033127,0.00017,2]
[398548708,1765823493252,-598.033127,0.00017,2]
[398548709,1765823493261,-255.059584,0.00017,2]
[398548710,1765823493271,-839.569379,0.00017,2]
[398548711,1765823493281,-839.569379,0.00017,2]
[398548712,1765823493290,-255.059584,0.00017,2]
[398548713,1765823493299,-598.033127,0.00017,2]
[398548714,1765823493309,-839.569379,0.00017,2]
[398548715,1765823493319,-255.059584,0.00017,2]
[398548716,1765823493329,-227.0,0.00017002,2]
[398548717,1765823493346,-481.25235646,0.00017005,2]
[398548718,1765823493356,-500.0,0.00017093,2]
[398548719,1765823493366,-500.0,0.00017093,2]
[398548720,1765823493376,-500.0,0.00017093,2]
[398548721,1765823493386,-500.0,0.00017093,2]
[398548722,1765823493397,-500.0,0.00017093,2]
[398548723,1765823493407,-500.0,0.00017093,2]
[398548724,1765823493417,-500.0,0.00017093,2]
[398548725,1765823493426,-500.0,0.00017093,2]
[398548726,1765823493436,-500.0,0.00017093,2]
[398548727,1765823493447,-500.0,0.00017093,2]
[398548728,1765823493456,-500.0,0.00017093,2]
[398548729,1765823493467,-1000.0,0.00017093,2]
[398548730,1765823493476,-1000.0,0.00017093,2]
[398548731,1765823493486,-1000.0,0.00017093,2]
[398548732,1765823493495,-1000.0,0.00017093,2]
[398548733,1765823493505,-1000.0,0.00017093,2]
[398548734,1765823493516,-1000.0,0.00017093,2]
[398548735,1765823493526,-1000.0,0.00017093,2]
[398548736,1765823493537,-1000.0,0.00017093,2]
[398548737,1765823493547,-1000.0,0.00017093,2]
[398548738,1765823493557,-747.67538969,0.00017093,2]
[398548739,1765823493567,-1010.0,0.000171,2]
[398548740,1765823493577,-150.0,0.0001711,2]
[398548741,1765823493586,-510.0,0.00017119,2]
[398548742,1765823493596,-150.0,0.00017123,2]
[398548743,1765823493605,-202.31948268,0.00017123,2]
[398548744,1765823493615,-500.0,0.00017123,2]
[398548745,1765823493625,-475.0,0.00017123,2]
[398548746,1765823493634,-500.0,0.00017123,2]
[398548747,1765823493644,-500.0,0.00017123,2]
[398548748,1765823493653,-150.0,0.00017123,2]
[398548749,1765823493663,-166.66,0.00017143,2]
[398548750,1765823493672,-318.0,0.00017147,2]
[398548751,1765823493683,-294.0,0.0001715,2]
[398548752,1765823493693,-152.0,0.00017156,6]
[398548753,1765823493703,-231.0,0.00017164,2]
[398548754,1765823493714,-200.0,0.0001717,2]
[398548755,1765823493723,-1000.0,0.000172,2]
[398548756,1765823493732,-656.38701,0.0001721,2]
[398548757,1765823493742,-200.0,0.00017247,2]
[398548758,1765823493751,-150.0,0.0001726,2]
[398548759,1765823493762,-450.0,0.0001726,2]
[398548760,1765823493771,-475.0,0.0001726,2]
[398548761,1765823493782,-500.0,0.0001726,2]
[398548762,1765823493793,-500.0,0.0001726,2]
[398548763,1765823493803,-150.0,0.0001726,2]
[398548764,1765823493813,-1217.45,0.0001726,2]
[398548765,1765823493822,-984.47,0.00017274,2]
[398548766,1765823493832,-199.77,0.0001731,2]
[398548767,1765823493843,-277.29,0.00017316,2]
[398548768,1765823493852,-168.0,0.00017324,2]
[398548769,1765823493865,-200.0,0.00017342,2]
[398548770,1765823493876,-250.0,0.00017353,2]
[398548771,1765823493886,-300.0,0.00017353,2]
[398548772,1765823493897,-195.0,0.00017353,2]
[398548773,1765823493910,-300.0,0.00017353,2]
[398548774,1765823493920,-300.0,0.00017353,2]
[398548775,1765823493930,-300.0,0.00017353,2]
[398548776,1765823493941,-300.0,0.00017353,2]
[398548777,1765823493950,-300.0,0.00017353,2]
[398548778,1765823493960,-2500.0,0.00017353,2]
[398548779,1765823493971,-2500.0,0.00017353,2]
[398548780,1765823493981,-2500.0,0.00017353,2]
[398548781,1765823493990,-2500.0,0.00017353,2]
[398548782,1765823494001,-2500.0,0.00017353,2]
[398548783,1765823494010,-250.0,0.00017353,2]
[398548784,1765823494020,-184.58021137,0.00017353,2]
[398548785,1765823494030,-300.0,0.00017353,2]
[398548786,1765823494041,-195.0,0.00017353,2]
[398548787,1765823494050,-152.0,0.00017382,7]
[398548788,1765823494060,-543.7,0.00017387,2]
[398548789,1765823494071,-168.0,0.00017392,2]
[398548790,1765823494081,-250.0,0.00017397,2]
[398548791,1765823494091,-475.0,0.00017397,2]
[398548792,1765823494100,-500.0,0.00017397,2]
[398548793,1765823494110,-500.0,0.00017397,2]
[398548794,1765823494123,-250.0,0.00017397,2]
[398548795,1765823494133,-595.37131296,0.00017424,2]
[398548796,1765823494143,-656.38702,0.0001745,2]
[398548797,1765823494153,-1600.0,0.00017458,2]
[398548798,1765823494163,-371.0,0.00017491,2]
[398548799,1765823494172,-420.0,0.00017492,2]
[398548800,1765823494182,-2000.0,0.000175,2]
[398548801,1765823494191,-227.0,0.00017501,2]
[398548802,1765823494201,-446.0,0.00017511,2]
[398548803,1765823494210,-200.0,0.00017515,2]
[398548804,1765823494221,-195.09647303,0.00017515,2]
[398548805,1765823494230,-475.0,0.00017534,2]
[398548806,1765823494239,-500.0,0.00017534,2]
[398548807,1765823494249,-500.0,0.00017534,2]
[398548808,1765823494258,-984.47,0.00017548,2]
[398548809,1765823494268,-656.0,0.0001756,2]
[398548810,1765823494277,-1261.0,0.0001756,2]
[398548811,1765823494286,-911.0,0.0001756,2]
[398548812,1765823494296,-1209.222,0.0001756,2]
[398548813,1765823494306,-3451.0,0.0001756,2]
[398548814,1765823494315,-1324.0,0.0001756,2]
[398548815,1765823494326,-1607.0,0.0001756,2]
[398548816,1765823494336,-2426.0,0.0001756,2]
[398548817,1765823494346,-1680.0,0.0001758,2]
[398548818,1765823494355,-152.0,0.00017607,8]
[398548819,1765823494365,-543.7,0.0001766,2]
[398548820,1765823494375,-475.0,0.00017671,2]
[398548821,1765823494384,-500.0,0.00017671,2]
[398548822,1765823494399,-500.0,0.00017671,2]
[398548823,1765823494409,-166.66,0.00017674,2]
[398548824,1765823494418,-200.0,0.0001769,2]
[398548825,1765823494428,-151.0,0.00017697,2]
[398548826,1765823494437,-311.1,0.00017697,2]
[398548827,1765823494446,-656.38702,0.000177,2]
[398548828,1765823494456,-227.0,0.00017708,2]
[398548829,1765823494466,-27927.13,0.00017728,2]
[398548830,1765823494475,-1000.0,0.00017732,2]
[398548831,1765823494485,-150.0,0.00017744,2]
[398548832,1765823494494,-150.0,0.00017744,2]
[398548833,1765823494503,-260.0,0.00017744,2]
[398548834,1765823494512,-211.0,0.00017744,2]
[398548835,1765823494522,-150.0,0.00017744,2]
[398548836,1765823494532,-272.773,0.00017744,2]
[398548837,1765823494541,-150.0,0.00017744,2]
[398548838,1765823494551,-150.0,0.00017744,2]
[398548839,1765823494560,-168.0,0.00017761,2]
[398548840,1765823494570,-227.0,0.00017786,2]
[398548841,1765823494580,-475.0,0.00017808,2]
[398548842,1765823494589,-500.0,0.00017808,2]
[398548843,1765823494599,-500.0,0.00017808,2]
[398548844,1765823494608,-500.0,0.00017808,2]
[398548845,1765823494618,-984.47,0.00017822,2]
[398548846,1765823494627,-152.0,0.00017833,9]
[398548847,1765823494637,-166.89,0.00017837,2]
[398548848,1765823494647,-543.7,0.00017934,2]
[398548849,1765823494657,-475.0,0.00017945,2]
[398548850,1765823494667,-500.0,0.00017945,2]
[398548851,1765823494676,-500.0,0.00017945,2]
[398548852,1765823494686,-500.0,0.00017945,2]
[398548853,1765823494696,-656.38701,0.0001795,2]
[398548854,1765823494706,-617.40005154,0.00017972,2]
[398548855,1765823494715,-277.28357709,0.00017985,2]
[398548856,1765823494725,-151.0,0.00017997,2]
[398548857,1765823494734,-151.0,0.00017997,2]
[398548858,1765823494744,-500.0,0.00017999,2]
[398548859,1765823494754,-500.0,0.00017999,2]
[398548860,1765823494763,-500.0,0.00017999,2]
[398548861,1765823494772,-500.0,0.00017999,2]
[398548862,1765823494782,-3444.19141667,0.00018,3]
[398548863,1765823494791,-621046.86300167,0.00018,2]
[398548864,1765823494801,-1184.75012873,0.00018,2]
[398548865,1765823494810,-2000.0,0.00018,2]
[398548866,1765823494820,-2000.0,0.00018,3]
[398548867,1765823494829,-2000.0,0.00018,3]
[398548868,1765823494839,-270.0,0.00018,2]
[398548869,1765823494848,-151.0,0.00018,2]
[398548870,1765823494859,-151.0,0.00018,2]
[398548871,1765823494871,-151.0,0.00018,2]
[398548872,1765823494880,-153.501818,0.00018,2]
[398548873,1765823494891,-151.0,0.00018,2]
[398548874,1765823494900,-151.0,0.00018,2]
[398548875,1765823494910,-151.867882,0.00018,2]
[398548876,1765823494919,-151.0,0.00018,2]
[398548877,1765823494929,-151.0,0.00018,2]
[398548878,1765823494939,-151.0,0.00018,2]
[398548879,1765823494948,-151.0,0.00018,2]
[398548880,1765823494958,-151.0,0.00018,2]
[398548881,1765823494968,-151.0,0.00018,2]
[398548882,1765823494978,-151.0,0.00018,2]
[398548883,1765823494988,-151.0,0.00018,2]
[398548884,1765823494998,-151.0,0.00018,2]
[398548885,1765823495009,-151.0,0.00018,2]
[398548886,1765823495019,-151.0,0.00018,2]
[398548887,1765823495029,-151.0,0.00018,2]
[398548888,1765823495038,-151.0,0.00018,2]
[398548889,1765823495047,-151.0,0.00018,2]
[398548890,1765823495057,-156.136763,0.00018,2]
[398548891,1765823495066,-156.136763,0.00018,2]
[398548892,1765823495076,-156.136763,0.00018,2]
[398548893,1765823495085,-156.136763,0.00018,2]
[398548894,1765823495095,-158.808424,0.00018,2]
[398548895,1765823495104,-151.0,0.00018,2]
[398548896,1765823495114,-151.0,0.00018,2]
[398548897,1765823495123,-151.0,0.00018,2]
[398548898,1765823495133,-151.0,0.00018,2]
[398548899,1765823495142,-153.488165,0.00018,2]
[398548900,1765823495151,-151.0,0.00018,2]
[398548901,1765823495161,-151.0,0.00018,2]
[398548902,1765823495170,-151.0,0.00018,2]
[398548903,1765823495179,-151.0,0.00018,2]
[398548904,1765823495189,-151.0,0.00018,2]
[398548905,1765823495198,-151.0,0.00018,2]
[398548906,1765823495208,-163.997473,0.00018,2]
[398548907,1765823495218,-151.0,0.00018,2]
[398548908,1765823495228,-151.0,0.00018,2]
[398548909,1765823495237,-151.0,0.00018,2]
[398548910,1765823495667,-151.0,0.00018,2]
[398548911,1765823495737,-151.0,0.00018,2]
[398548912,1765823495746,-151.0,0.00018,2]
[398548913,1765823495756,-166.525158,0.00018,2]
[398548914,1765823495765,-166.525158,0.00018,2]
[398548915,1765823495775,-151.0,0.00018,2]
[398548916,1765823495785,-193.343051,0.00018,2]
[398548917,1765823495795,-193.343051,0.00018,2]
[398548918,1765823495804,-151.0,0.00018,2]
[398548919,1765823495814,-193.343051,0.00018,2]
[398548920,1765823495824,-193.343051,0.00018,2]
[398548921,1765823495833,-151.0,0.00018,2]
[398548922,1765823495842,-151.0,0.00018,2]
[398548923,1765823495851,-151.0,0.00018,2]
[398548924,1765823495861,-151.0,0.00018,2]
[398548925,1765823495873,-151.0,0.00018,2]
[398548926,1765823495882,-276.00508797,0.00018,2]
[398548927,1765823495892,-151.0,0.00018,2]
[398548928,1765823495902,-151.0,0.00018,2]
[398548929,1765823495911,-151.0,0.00018,2]
[398548930,1765823495921,-151.0,0.00018,2]
[398548931,1765823495931,-151.0,0.00018,2]
[398548932,1765823495942,-151.0,0.00018,2]
[398548933,1765823495952,-1003.51344,0.00018,2]
[398548934,1765823495961,-151.0,0.00018,2]
[398548935,1765823495971,-151.0,0.00018,2]
[398548936,1765823495980,-151.0,0.00018,2]
[398548937,1765823495990,-151.0,0.00018,2]
[398548938,1765823496000,-151.0,0.00018,2]
[398548939,1765823496013,-220.0443,0.00018,2]
[398548940,1765823496023,-300.811346,0.00018,2]
[398548941,1765823496033,-151.0,0.00018,2]
[398548942,1765823496042,-1003.51344,0.00018,2]
[398548943,1765823496052,-1003.51344,0.00018,2]
[398548944,1765823496061,-1003.51344,0.00018,2]
[398548945,1765823496071,-151.0,0.00018,2]
[398548946,1765823496080,-151.0,0.00018,2]
[398548947,1765823496090,-151.0,0.00018,2]
[398548948,1765823496099,-151.0,0.00018,2]
[398548949,1765823496109,-151.0,0.00018,2]
[398548950,1765823496118,-151.0,0.00018,2]
[398548951,1765823496128,-151.0,0.00018,2]
[398548952,1765823496138,-151.0,0.00018,2]
[398548953,1765823496147,-428.931692,0.00018,2]
[398548954,1765823496157,-428.931692,0.00018,2]
[398548955,1765823496166,-428.931692,0.00018,2]
[398548956,1765823496177,-151.0,0.00018,2]
[398548957,1765823496186,-428.931692,0.00018,2]
[398548958,1765823496197,-1133.129984,0.00018,2]
[398548959,1765823496206,-1133.129984,0.00018,2]
[398548960,1765823496217,-151.0,0.00018,2]
[398548961,1765823496226,-151.0,0.00018,2]
[398548962,1765823496235,-151.0,0.00018,2]
[398548963,1765823496245,-1133.129984,0.00018,2]
[398548964,1765823496255,-151.0,0.00018,2]
[398548965,1765823496265,-151.0,0.00018,2]
[398548966,1765823496275,-151.0,0.00018,2]
[398548967,1765823496284,-1133.129984,0.00018,2]
[398548968,1765823496294,-151.0,0.00018,2]
[398548969,1765823496303,-279.220146,0.00018,2]
[398548970,1765823496313,-182.758869,0.00018,2]
[398548971,1765823496323,-151.0,0.00018,2]
[398548972,1765823496332,-165.017544,0.00018,2]
[398548973,1765823496342,-151.0,0.00018,2]
[398548974,1765823496352,-476.25,0.00018,2]
[398548975,1765823496362,-476.25,0.00018,2]
[398548976,1765823496373,-476.25,0.00018,2]
[398548977,1765823496383,-151.0,0.00018,2]
[398548978,1765823496393,-476.25,0.00018,2]
[398548979,1765823496403,-151.0,0.00018,2]
[398548980,1765823496423,-215.550331,0.00018,2]
[398548981,1765823496435,-151.0,0.00018,2]
[398548982,1765823496448,-151.0,0.00018,2]
[398548983,1765823496459,-171.233663,0.00018,2]
[398548984,1765823496473,-481.451552,0.00018,2]
[398548985,1765823496483,-151.0,0.00018,2]
[398548986,1765823496494,-481.451552,0.00018,2]
[398548987,1765823496504,-151.0,0.00018,2]
[398548988,1765823496514,-481.451552,0.00018,2]
[398548989,1765823496524,-151.0,0.00018,2]
[398548990,1765823496534,-481.451552,0.00018,2]
[398548991,1765823496544,-151.0,0.00018,2]
[398548992,1765823496554,-151.0,0.00018,2]
[398548993,1765823496563,-212.851848,0.00018,2]
[398548994,1765823496573,-151.0,0.00018,2]
[398548995,1765823496582,-151.0,0.00018,2]
[398548996,1765823496592,-151.0,0.00018,2]
[398548997,1765823496603,-151.0,0.00018,2]
[398548998,1765823496612,-151.0,0.00018,2]
[398548999,1765823496622,-151.0,0.00018,2]
[398549000,1765823496632,-404.949639,0.00018,2]
[398549001,1765823496641,-404.949639,0.00018,2]
[398549002,1765823496652,-251.774238,0.00018,2]
[398549003,1765823496661,-404.949639,0.00018,2]
[398549004,1765823496671,-151.0,0.00018,2]
[398549005,1765823496681,-251.774238,0.00018,2]
[398549006,1765823496691,-404.949639,0.00018,2]
[398549007,1765823496701,-151.0,0.00018,2]
[398549008,1765823496711,-151.0,0.00018,2]
[398549009,1765823496723,-151.0,0.00018,2]
[398549010,1765823496733,-251.774238,0.00018,2]
[398549011,1765823496743,-151.0,0.00018,2]
[398549012,1765823496753,-151.0,0.00018,2]
[398549013,1765823496763,-168.351815,0.00018,2]
[398549014,1765823496772,-151.0,0.00018,2]
[398549015,1765823496782,-151.0,0.00018,2]
[398549016,1765823496797,-251.774238,0.00018,2]
[398549017,1765823496807,-151.0,0.00018,2]
[398549018,1765823496818,-151.0,0.00018,2]
[398549019,1765823496829,-151.0,0.00018,2]
[398549020,1765823496839,-164.011063,0.00018,2]
[398549021,1765823496849,-269.791959,0.00018,2]
[398549022,1765823496859,-151.0,0.00018,2]
[398549023,1765823496871,-399.068214,0.00018,2]
[398549024,1765823496882,-399.068214,0.00018,2]
[398549025,1765823496891,-399.068214,0.00018,2]
[398549026,1765823496902,-399.068214,0.00018,2]
[398549027,1765823496913,-153.352232,0.00018,2]
[398549028,1765823496923,-151.0,0.00018,2]
[398549029,1765823496933,-151.0,0.00018,2]
[398549030,1765823496945,-182.052318,0.00018,2]
[398549031,1765823496954,-151.0,0.00018,2]
[398549032,1765823496965,-182.052318,0.00018,2]
[398549033,1765823496974,-182.052318,0.00018,2]
[398549034,1765823496985,-193.091762,0.00018,2]
[398549035,1765823496995,-151.0,0.00018,2]
[398549036,1765823497005,-182.052318,0.00018,2]
[398549037,1765823497015,-193.091762,0.00018,2]
[398549038,1765823497026,-154.694562,0.00018,2]
[398549039,1765823497037,-151.0,0.00018,2]
[398549040,1765823497047,-193.091762,0.00018,2]
[398549041,1765823497058,-151.0,0.00018,2]
[398549042,1765823497068,-193.091762,0.00018,2]
[398549043,1765823497078,-151.0,0.00018,2]
[398549044,1765823497088,-151.0,0.00018,2]
[398549045,1765823497098,-182.039087,0.00018,2]
[398549046,1765823497109,-182.039087,0.00018,2]
[398549047,1765823497119,-151.0,0.00018,2]
[398549048,1765823497129,-215.276589,0.00018,2]
[398549049,1765823497138,-182.039087,0.00018,2]
[398549050,1765823497154,-151.0,0.00018,2]
[398549051,1765823497164,-151.0,0.00018,2]
[398549052,1765823497174,-215.276589,0.00018,2]
[398549053,1765823497184,-182.039087,0.00018,2]
[398549054,1765823497194,-215.276589,0.00018,2]
[398549055,1765823497205,-2091.976222,0.00018,2]
[398549056,1765823497218,-215.276589,0.00018,2]
[398549057,1765823497229,-213.087999,0.00018,2]
[398549058,1765823497239,-213.087999,0.00018,2]
[398549059,1765823497250,-213.087999,0.00018,2]
[398549060,1765823497260,-151.0,0.00018,2]
[398549061,1765823497270,-151.0,0.00018,2]
[398549062,1765823497281,-157.034148,0.00018,2]
[398549063,1765823497291,-213.087999,0.00018,2]
[398549064,1765823497301,-151.0,0.00018,2]
[398549065,1765823497311,-151.0,0.00018,2]
[398549066,1765823497321,-151.0,0.00018,2]
[398549067,1765823497331,-151.0,0.00018,2]
[398549068,1765823497341,-151.0,0.00018,2]
[398549069,1765823497351,-2091.976222,0.00018,2]
[398549070,1765823497360,-2091.976222,0.00018,2]
[398549071,1765823497371,-217.807506,0.00018,2]
[398549072,1765823497381,-2091.976222,0.00018,2]
[398549073,1765823497391,-217.807506,0.00018,2]
[398549074,1765823497401,-217.807506,0.00018,2]
[398549075,1765823497411,-217.807506,0.00018,2]
[398549076,1765823497421,-152.309162,0.00018,2]
[398549077,1765823497431,-1052.595266,0.00018,2]
[398549078,1765823497441,-1052.595266,0.00018,2]
[398549079,1765823497450,-1052.595266,0.00018,2]
[398549080,1765823497460,-1052.595266,0.00018,2]
[398549081,1765823497471,-151.0,0.00018,2]
[398549082,1765823497482,-151.0,0.00018,2]
[398549083,1765823497494,-151.0,0.00018,2]
[398549084,1765823497510,-151.0,0.00018,2]
[398549085,1765823497520,-151.0,0.00018,2]
[398549086,1765823497530,-312.099788,0.00018,2]
[398549087,1765823497541,-151.0,0.00018,2]
[398549088,1765823497552,-151.0,0.00018,2]
[398549089,1765823497562,-312.099788,0.00018,2]
[398549090,1765823497573,-151.0,0.00018,2]
[398549091,1765823497584,-293.773689,0.00018,2]
[398549092,1765823497595,-293.773689,0.00018,2]
[398549093,1765823497605,-312.099788,0.00018,2]
[398549094,1765823497616,-425.924641,0.00018,2]
[398549095,1765823497628,-312.099788,0.00018,2]
[398549096,1765823497638,-151.0,0.00018,2]
[398549097,1765823497649,-151.0,0.00018,2]
[398549098,1765823497660,-425.924641,0.00018,2]
[398549099,1765823497671,-425.924641,0.00018,2]
[398549100,1765823497681,-1083.149669,0.00018,2]
[398549101,1765823497692,-425.924641,0.00018,2]
[398549102,1765823497702,-151.0,0.00018,2]
[398549103,1765823497712,-151.0,0.00018,2]
[398549104,1765823497726,-151.0,0.00018,2]
[398549105,1765823497737,-151.0,0.00018,2]
[398549106,1765823497748,-151.0,0.00018,2]
[398549107,1765823497759,-185.295234,0.00018,2]
[398549108,1765823497770,-254.23112,0.00018,2]
[398549109,1765823497781,-254.23112,0.00018,2]
[398549110,1765823497791,-254.23112,0.00018,2]
[398549111,1765823497802,-254.23112,0.00018,2]
[398549112,1765823497812,-151.0,0.00018,2]
[398549113,1765823497822,-151.0,0.00018,2]
[398549114,1765823497832,-180.322228,0.00018,2]
[398549115,1765823497842,-1835.233164,0.00018,2]
[398549116,1765823497853,-1835.233164,0.00018,2]
[398549117,1765823497864,-1835.233164,0.00018,2]
[398549118,1765823497882,-174.54781,0.00018,2]
[398549119,1765823497893,-1835.233164,0.00018,2]
[398549120,1765823497903,-151.0,0.00018,2]
[398549121,1765823497915,-584.830854,0.00018,2]
[398549122,1765823497926,-715.643103,0.00018,2]
[398549123,1765823497936,-584.830854,0.00018,2]
[398549124,1765823497949,-194.554175,0.00018,2]
[398549125,1765823497959,-491.146389,0.00018,2]
[398549126,1765823497970,-715.643103,0.00018,2]
[398549127,1765823497981,-584.830854,0.00018,2]
[398549128,1765823497991,-715.643103,0.00018,2]
[398549129,1765823498003,-491.146389,0.00018,2]
[398549130,1765823498013,-584.830854,0.00018,2]
[398549131,1765823498024,-194.554175,0.00018,2]
[398549132,1765823498035,-715.643103,0.00018,2]
[398549133,1765823498047,-491.146389,0.00018,2]
[398549134,1765823498058,-194.554175,0.00018,2]
[398549135,1765823498068,-491.146389,0.00018,2]
[398549136,1765823498079,-194.554175,0.00018,2]
[398549137,1765823498089,-151.0,0.00018,2]
[398549138,1765823498100,-151.0,0.00018,2]
[398549139,1765823498111,-151.0,0.00018,2]
[398549140,1765823498123,-151.0,0.00018,2]
[398549141,1765823498135,-942.397023,0.00018,2]
[398549142,1765823498145,-942.397023,0.00018,2]
[398549143,1765823498156,-182.777855,0.00018,2]
[398549144,1765823498168,-942.397023,0.00018,2]
[398549145,1765823498178,-182.777855,0.00018,2]
[398549146,1765823498189,-942.397023,0.00018,2]
[398549147,1765823498199,-182.777855,0.00018,2]
[398549148,1765823498209,-151.0,0.00018,2]
[398549149,1765823498220,-182.777855,0.00018,2]
[398549150,1765823498234,-193.767413,0.00018,2]
[398549151,1765823498791,-193.767413,0.00018,2]
[398549152,1765823498801,-193.767413,0.00018,2]
[398549153,1765823498811,-152.114531,0.00018,2]
[398549154,1765823498821,-193.767413,0.00018,2]
[398549155,1765823498830,-234.357279,0.00018,2]
[398549156,1765823498840,-503.562911,0.00018,2]
[398549157,1765823498849,-151.0,0.00018,2]
[398549158,1765823498862,-151.0,0.00018,2]
[398549159,1765823498871,-503.562911,0.00018,2]
[398549160,1765823498881,-151.0,0.00018,2]
[398549161,1765823498891,-151.0,0.00018,2]
[398549162,1765823498903,-503.562911,0.00018,2]
[398549163,1765823498913,-503.562911,0.00018,2]
[398549164,1765823498923,-62861.71499112,0.00018,2]
[398549165,1765823498932,-1012.876581,0.00018,2]
[398549166,1765823498944,-797.629675,0.00018,2]
[398549167,1765823498954,-151.0,0.00018,2]
[398549168,1765823498966,-797.629675,0.00018,2]
[398549169,1765823498977,-250.490098,0.00018,2]